[Event "Solidarity Match Ukraine-France 2022"]
[Site "Tornelo"]
[Date "2022.05.14"]
[Round "2.1"]
[White "Eljanov, Pavel"]
[Black "Fressinet, Laurent"]
[Result "1-0"]
[ECO "A62"]
[WhiteElo "2681"]
[BlackElo "2630"]
[Annotator "TA"]
[PlyCount "89"]
[EventDate "2022.05.13"]
[EventType "team-tourn"]
[EventCountry "NET"]
[SourceTitle "playchess.com"]
[Source "ChessBase"]
[SourceQuality "1"]
[WhiteTeam "Ukraine"]
[BlackTeam "France"]
[WhiteTeamCountry "UKR"]
[BlackTeamCountry "FRA"]
[TimeControl "900+10"]

{[%evp 17,89,21,23,26,101,101,124,107,179,181,191,187,205,124,120,137,135,137,129,102,103,106,131,67,68,71,61,19,1,-14,-8,0,65,68,99,99,91,81,129,135,129,118,125,125,131,124,187,187,262,258,360,366,350,366,344,360,379,371,513,482,750,721,5206,3387,2952,2485,2441,1578,29974,29974,29970,29967,5439,2035]} 1. Nf3 {[%emt 0:00:10]} Nf6 {[%emt 0:00:39]} 2. g3 {[%emt 0:00:07]} g6 {[%emt 0:00:12]} 3. c4 {[%emt 0:00:04]} Bg7 {[%emt 0:00:15]} 4. Nc3 {[%emt 0:00:06]} O-O {[%emt 0:01:02]} 5. Bg2 {[%emt 0:00:03]} c5 {[%emt 0:00:04]} 6. d4 {[%emt 0:00:18]} d6 {[%emt 0:00:13]} 7. d5 {[%emt 0:00:41]} e6 {[%emt 0:00:08]} 8. O-O {[%emt 0:00:01]} exd5 {[%emt 0:00:19]} 9. cxd5 {[%emt 0:00:02]} Re8 {[%emt 0:00:06]} 10. a4 {[%emt 0:00:08] A62: Modern Benoni: Fianchetto Variation without early ...Nbd7.} Bf5 {[%emt 0:02:50] [#]} (10... b6 $11 {keeps the balance.}) 11. Nd2 $146 {[%emt 0:01:23]} ({Predecessor:} 11. Nh4 Bg4 12. h3 Bd7 13. Bf4 Qe7 14. Qd2 Na6 15. Rfe1 Nh5 16. Bg5 f6 17. Bh6 g5 18. Bxg7 gxh4 {1-0 (68) Buckels,V (2455)-Osmanodja,F (2293) Playchess.com INT 2020}) 11... b6 {[%emt 0:02:53]} 12. Nc4 {[%emt 0:01:14] White is better.} a6 {[%emt 0:01:44]} (12... Na6 $16) 13. Bf4 $18 {[%emt 0:00:54]} Bf8 {[%emt 0:00:05]} 14. Qb3 {[%emt 0:00:09]} Ra7 {[%emt 0:01:48][%cal Ba8a7,Ba7b7,Bb7b4][%mdl 32]} 15. Qxb6 {[%emt 0:01:43]} Qxb6 {[%emt 0:00:03]} 16. Nxb6 {[%emt 0:00:03]} Nh5 {[%emt 0:00:05]} 17. Bd2 {[%emt 0:01:17]} Rb7 {[%emt 0:00:05]} 18. a5 {[%emt 0:00:46]} Nd7 {[%emt 0:01:20]} 19. Nc4 {[%emt 0:00:20] Strongly threatening e4.} Rb4 {[%emt 0:00:47] [#]} 20. b3 {[%emt 0:00:28]} (20. e4 $1 $16 {Hoping for b3.} Bxe4 21. Nxe4 Rxc4 22. Rfe1) 20... Bc2 $14 {[%emt 0:00:27]} 21. Na4 {[%emt 0:00:25] Black must now prevent Rfc1.} Rb7 {[%emt 0:00:53]} 22. Ne3 {[%emt 0:01:49]} Bxb3 {[%emt 0:00:07]} 23. Rab1 {[%emt 0:00:46][%cal Oa4b6]} Reb8 {[%emt 0:01:44]} 24. Nb6 {[%emt 0:00:02]} Nxb6 {[%emt 0:00:40]} ({Better is} 24... Ba4 $1 $11) 25. Rxb3 {[%emt 0:00:02]} Nd7 {[%emt 0:00:02] White stays focused until the end.} 26. Rxb7 {[%emt 0:00:01] White is more active.} Rxb7 {[%emt 0:00:01]} 27. Nc4 $36 {[%emt 0:00:02][%mdl 2048] White is in control.} Nhf6 {[%emt 0:00:12]} (27... f5 $142) 28. e4 {[%emt 0:01:11]} Ne5 {[%emt 0:00:29]} 29. Nxe5 {[%emt 0:00:06]} dxe5 {[%emt 0:00:01]} 30. Rc1 {[%emt 0:00:11]} Bd6 {[%emt 0:00:09]} 31. f3 {[%emt 0:00:08]} Nd7 {[%emt 0:00:22]} (31... Rb3 $16 {was necessary.} 32. Kf2 Rb2) 32. Bf1 $18 {[%emt 0:00:03]} Nb8 {[%emt 0:00:02]} (32... Ra7 {was worth a try.} 33. h4 Kf8) 33. Be3 {[%emt 0:00:14]} f6 {[%emt 0:00:28]} 34. Bxc5 {[%emt 0:00:19]} Bxc5+ {[%emt 0:00:07]} 35. Rxc5 {[%emt 0:00:02][%mdl 4096] Endgame KRB-KRN} Kf7 {[%emt 0:00:01]} 36. g4 {[%emt 0:01:21] Inhibits f5.} Ke7 {[%emt 0:00:08]} 37. h4 {[%emt 0:00:02][%cal Bh2h4,Bh4g5][%mdl 32]} Kd8 {[%emt 0:00:33]} 38. g5 {[%emt 0:00:04]} fxg5 {[%emt 0:00:02]} (38... Rb3 $142 39. Kf2 (39. gxf6 Rxf3 40. d6 Nd7 $18) 39... Nd7) 39. hxg5 {[%emt 0:00:01]} Rc7 {[%emt 0:00:01]} 40. Rxc7 {[%emt 0:00:04]} Kxc7 {[%emt 0:00:02]} 41. Kf2 {[%emt 0:00:03]} Kd6 {[%emt 0:00:02]} 42. Ke3 {[%emt 0:00:02] White threatens f4 and mate.} Ke7 {[%emt 0:00:11]} 43. f4 {[%emt 0:00:04]} Kd6 {[%emt 0:00:02]} 44. fxe5+ {[%emt 0:00:16]} Kxe5 {[%emt 0:00:03]} 45. Bh3 {[%emt 0:00:03] Weighted Error Value: White=0.08 (flawless) /Black=0.55} (45. Be2 $142 Nd7 46. Bxa6) 1-0

[Event "Solidarity Match Ukraine-France 2022"]
[Site "Tornelo"]
[Date "2022.05.14"]
[Round "2.2"]
[White "Buksa, Nataliya"]
[Black "Sebag, Marie"]
[Result "0-1"]
[ECO "B99"]
[WhiteElo "2406"]
[BlackElo "2472"]
[Annotator "TA"]
[PlyCount "114"]
[EventDate "2022.05.13"]
[EventType "team-tourn"]
[EventCountry "NET"]
[SourceTitle "playchess.com"]
[Source "ChessBase"]
[SourceQuality "1"]
[WhiteTeam "Ukraine"]
[BlackTeam "France"]
[WhiteTeamCountry "UKR"]
[BlackTeamCountry "FRA"]
[TimeControl "900+10"]

{[%evp 25,114,22,74,-70,-77,-88,-91,-103,-6,-95,-87,-148,-35,-27,-22,-47,-47,-42,-52,-56,-63,-222,-235,-193,0,-262,-256,-300,-79,-236,-154,-251,-258,-227,-234,-233,-237,-212,-215,-424,-416,-416,-403,-390,-375,-370,-271,-352,-306,-569,-568,-546,-389,-355,-273,-429,-431,-383,56,-94,-78,-86,-79,-62,-66,-90,0,-133,-145,-264,-258,-408,-398,-377,-350,-952,-948,-913,-911,-804,-781,-5189,-2764,-29974,-29973,-29968,-29962,-29961,-29960,-6195,-5582]} 1. e4 {[%emt 0:00:10]} c5 {[%emt 0:00:19]} 2. Nf3 {[%emt 0:00:03]} d6 {[%emt 0:00:03]} 3. d4 {[%emt 0:00:01]} cxd4 {[%emt 0:00:01]} 4. Nxd4 {[%emt 0:00:01]} Nf6 {[%emt 0:00:02]} 5. Nc3 {[%emt 0:00:02]} a6 {[%emt 0:00:01]} 6. Bg5 {[%emt 0:00:01]} e6 {[%emt 0:00:09]} 7. f4 {[%emt 0:00:03]} Qc7 {[%emt 0:00:02]} 8. Qf3 {[%emt 0:00:03]} b5 {[%emt 0:00:07]} 9. O-O-O {[%emt 0:00:04]} Bb7 {[%emt 0:00:07]} 10. a3 {[%emt 0:00:19]} Nbd7 {[%emt 0:00:15]} 11. g4 {[%emt 0:00:09]} Be7 {[%emt 0:00:08]} 12. Bxf6 {[%emt 0:00:26]} Bxf6 {[%emt 0:00:08]} 13. g5 {[%emt 0:00:01]} Be7 {[%emt 0:00:09]} (13... Bxd4 $11 14. Rxd4 O-O) 14. f5 {[%emt 0:00:03] B99: Sicilian Najdorf: 6 Bg5 e6 7 f4 Be7 8 Qf3 Qc7 9 0-0-0 Nbd7.} (14. h4 $16) 14... e5 $1 $15 {[%emt 0:00:30]} (14... Bxg5+ 15. Kb1 $11) 15. Nb3 {[%emt 0:00:26]} Bxg5+ {[%emt 0:00:04]} 16. Kb1 {[%emt 0:00:02][%cal Of1b5] Black is better.} Rc8 {[%emt 0:00:39]} ({Black should try} 16... Nf6 $17 {White must now prevent ...0-0.} 17. Rg1 Bh6) 17. Rg1 {[%emt 0:00:12] [#]} (17. Qg2 $1 $11 {remains equal.} Be7 18. Qxg7) 17... Bh6 $146 {[%emt 0:00:21]} ({Predecessor:} 17... h6 18. Be2 Ke7 19. h4 Bxh4 20. Rxg7 Bg5 21. f6+ Bxf6 22. Rg2 Qb6 23. Qf5 Bc6 {1-0 (68) Maltsevskaya,A (2129)-Tomilova,E (2329) Kaliningrad 2015}) 18. Ka2 {[%emt 0:03:48]} (18. Qf2 $142) 18... b4 {[%emt 0:00:32]} (18... Qb6 $17 19. Qd3 Rc6) 19. axb4 $15 {[%emt 0:00:13]} Qb6 $36 {[%emt 0:00:02][%csl LRb4,LRg1][%mdl 2048] Black fights for an advantage.} 20. Bh3 {[%emt 0:00:25][%cal Of5f6]} Nf6 {[%emt 0:00:28]} 21. Qd3 $1 {[%emt 0:02:03]} (21. Na5 $2 Ba8 22. Nd5 Bxd5+ 23. exd5 Rxc2 $19) 21... Ke7 {[%emt 0:00:06]} 22. Na5 {[%emt 0:00:41]} Ba8 {[%emt 0:00:49]} (22... Rxc3 23. Qxc3 Rc8 24. Qb3 $14 (24. Nc4 Qb5 $11)) 23. Kb1 $2 {[%emt 0:01:04]} (23. Nc4 Qxb4 24. b3 (24. Qxd6+ $2 Qxd6 25. Nxd6 Rc6 $19) 24... Rhd8 $17) (23. Ka3 $1 $15) 23... Qxb4 $19 {[%emt 0:00:37][%cal Rf6e4]} 24. Qxa6 {[%emt 0:00:10]} Rhd8 $2 {[%emt 0:01:22]} (24... Rxc3 $19 25. Qa7+ Bb7 $1 {[%mdl 512]} 26. Nxb7 Rc7) 25. Rg3 $2 {[%emt 0:00:14][%mdl 8192]} (25. Qa7+ $2 Kf8 26. Rd3 Bd2 $1 $19 {[%mdl 512]}) (25. Qxa8 $1 $11 {and White is okay.} Rxc3 26. Nc6+ Rxc6 27. Qxc6) 25... Rb8 {[%emt 0:05:45][%csl Gb8][%cal Rb4b2]} (25... Bxe4 26. Nxe4 Qxe4 27. Rgd3 $19) 26. b3 {[%emt 0:00:51][%cal Oa6a8]} Nxe4 $2 {[%emt 0:01:22]} (26... Kf8 $19 {has better winning chances.} 27. Bg2 (27. Nc6 $2 Bxc6 28. Qxc6 Ra8 $19) 27... Bf4) 27. f6+ {[%emt 0:03:19]} (27. Qxa8 $17 Nxc3+ 28. Rxc3 Qxc3 29. Nc6+ Kf6 30. Nxb8) 27... gxf6 {[%emt 0:00:23] Really sharp!} 28. Qxa8 {[%emt 0:01:44]} (28. Nxe4 $17 Bxe4 29. Nc6+ Bxc6 30. Qxc6) 28... Nxc3+ {[%emt 0:01:18]} 29. Rxc3 {[%emt 0:00:03]} Qxc3 {[%emt 0:00:02]} ({Don't play} 29... Rxa8 30. Nc6+ Kf8 31. Nxb4 $18) 30. Nc6+ {[%emt 0:00:06]} Kf8 {[%emt 0:00:06]} 31. Nxb8 {[%emt 0:00:02]} Qxh3 {[%emt 0:00:27]} 32. Qb7 $2 {[%emt 0:00:58]} (32. Qd5) 32... Qc8 {[%emt 0:00:08]} 33. Qxc8 {[%emt 0:01:37]} Rxc8 {[%emt 0:00:02][%mdl 4096] Endgame KRB-KRN} 34. Nd7+ {[%emt 0:00:03]} Ke7 {[%emt 0:00:26]} 35. Nb6 {[%emt 0:00:02]} Rg8 {[%emt 0:00:48]} 36. b4 {[%emt 0:00:07]} f5 {[%emt 0:00:39]} 37. b5 $2 {[%emt 0:00:02]} (37. Nd5+ Ke6 38. Nc7+ Kd7 39. Nd5) 37... Ke6 {[%emt 0:01:01] Strongly threatening ...Rb8.} 38. c4 {[%emt 0:00:13]} Be3 {[%emt 0:00:08]} 39. Nd5 {[%emt 0:00:06]} Bd4 {[%emt 0:00:07]} 40. Ka2 {[%emt 0:00:50]} (40. Kc2 {was necessary.}) 40... Rg2+ {[%emt 0:00:09]} 41. Ka3 {[%emt 0:00:01][%cal Od1d4]} Rc2 $2 {[%emt 0:00:44] [#]} (41... Kd7 $19 {Hoping for ...f4.} 42. Nf6+ Kd8) 42. b6 {[%emt 0:00:28]} (42. Rxd4 $1 $14 {is the one way to stay ahead.} exd4 43. b6 Rxc4 44. b7 Kxd5 45. b8=Q) 42... Bc5+ $1 $17 {[%emt 0:01:07]} (42... Rxh2 43. Rxd4 $1 {[%mdl 512]} Rg2 44. Rh4 Rg3+ 45. Ka4 $18) 43. Kb3 {[%emt 0:00:13] [#]} Rg2 $1 {[%emt 0:00:02]} ({Don't take} 43... Rxh2 44. b7 Ba7 45. Ra1 Rh3+ 46. Nc3 $16) 44. b7 {[%emt 0:00:13]} Rg8 {[%emt 0:00:02]} 45. Nc7+ {[%emt 0:00:09]} Ke7 {[%emt 0:00:15]} (45... Kd7 $17 46. Na6 Ba7) 46. Na6 {[%emt 0:00:05]} (46. Nd5+ $1 $11 {keeps the balance.} Ke6 47. Kc2) 46... Ba7 {[%emt 0:00:02]} 47. Ka4 {[%emt 0:00:48]} (47. Nb4 $17 Bb8 48. Nd5+ Ke6 49. Ra1) 47... f4 $19 {[%emt 0:00:02][%cal Bf5f4,Bf4f3,Bf3f2][%mdl 32]} 48. Kb5 {[%emt 0:00:02]} (48. Nb4 $142 Kd7 49. Kb5) 48... f3 {[%emt 0:00:04] And now ...e4 would win.} 49. Nb4 {[%emt 0:00:02] aiming for Nc6+.} Ke6 {[%emt 0:00:14] ...e4 is the strong threat.} 50. Nc6 $2 {[%emt 0:00:21]} (50. Ra1 Bb8 51. Nd5) 50... Bc5 {[%emt 0:00:27]} 51. b8=Q {[%emt 0:00:13]} Rxb8+ {[%emt 0:00:02]} 52. Nxb8 {[%emt 0:00:01]} e4 {[%emt 0:00:02]} 53. Rf1 {[%emt 0:00:04]} f2 {[%emt 0:00:09]} 54. Na6 {[%emt 0:00:03]} e3 {[%emt 0:00:09]} 55. Nxc5+ {[%emt 0:00:07]} dxc5 {[%emt 0:00:02]} 56. Kxc5 {[%emt 0:00:01]} e2 {[%emt 0:00:04]} 57. Rxf2 {[%emt 0:00:04]} e1=Q {[%emt 0:00:03] Weighted Error Value: White=1.03/Black=0.48} 0-1

[Event "Solidarity Match Ukraine-France 2022"]
[Site "Tornelo"]
[Date "2022.05.14"]
[Round "2.3"]
[White "Berdnyk, Mariia"]
[Black "Gatineau, Yovann"]
[Result "0-1"]
[ECO "E04"]
[WhiteElo "2290"]
[BlackElo "2367"]
[Annotator "TA"]
[PlyCount "92"]
[EventDate "2022.05.13"]
[EventType "team-tourn"]
[EventCountry "NET"]
[SourceTitle "playchess.com"]
[Source "ChessBase"]
[SourceQuality "1"]
[WhiteTeam "Ukraine"]
[BlackTeam "France"]
[WhiteTeamCountry "UKR"]
[BlackTeamCountry "FRA"]
[TimeControl "900+10"]

{[%evp 14,92,6,-6,0,-33,0,-4,-11,-12,-22,-91,-90,-94,0,0,0,-91,-97,-98,-106,-94,-89,-184,-160,-200,-95,-124,-68,-128,-93,-127,-12,-66,-72,-53,-39,-104,-87,-95,-83,-111,-117,-192,-138,-119,-127,-131,-97,-204,-196,-379,-310,-458,-458,-458,-453,-437,-432,-479,-468,-618,-606,-1261,-1250,-1227,-1202,-1837,-1282,-1221,-1127,-1000,-823,-29986,-29987,-29987,-29984,-29990,-29991,-29996,-29997]} 1. d4 {[%emt 0:00:10]} d5 {[%emt 0:00:19]} 2. c4 {[%emt 0:00:05]} c6 {[%emt 0:00:01]} 3. Nf3 {[%emt 0:00:03]} Nf6 {[%emt 0:00:02]} 4. g3 {[%emt 0:00:09]} dxc4 {[%emt 0:01:21]} 5. Bg2 {[%emt 0:00:05]} b5 {[%emt 0:00:02]} 6. O-O {[%emt 0:00:08]} Bb7 {[%emt 0:00:07]} 7. Ne5 {[%emt 0:02:10]} e6 {[%emt 0:00:18]} 8. Nc3 {[%emt 0:01:10][%cal Oc3b5]} Qc8 {[%emt 0:03:14] E04: Open Catalan: 5 Nf3.} 9. e4 {[%emt 0:02:16] [#]} Bb4 $146 {[%emt 0:00:10]} ({Predecessor:} 9... Be7 10. d5 exd5 11. exd5 O-O 12. d6 Bd8 13. a4 b4 14. Ne4 c5 15. Re1 Nxe4 16. Rxe4 {1-0 (36) Lumidao,M (2135)-Salvador,L (2211) Bangkok 2019}) 10. Bg5 {[%emt 0:01:16]} Nbd7 {[%emt 0:01:09] The position is equal.} 11. Nxd7 {[%emt 0:00:04]} Nxd7 {[%emt 0:01:01]} 12. e5 {[%emt 0:00:07]} (12. Qg4 $11) 12... Bxc3 $17 {[%emt 0:00:41]} 13. bxc3 {[%emt 0:00:01]} O-O {[%emt 0:00:07]} (13... c5 $17 {And now ...Bxg2 would win.} 14. Bxb7 Qxb7) 14. Qg4 $11 {[%emt 0:04:07]} Kh8 {[%emt 0:00:29]} 15. Qh5 {[%emt 0:00:19]} (15. Be7 $11 Re8 16. Bd6) 15... c5 $17 {[%emt 0:01:38]} 16. Be7 {[%emt 0:00:48]} Bxg2 {[%emt 0:00:26]} 17. Kxg2 {[%emt 0:00:05]} Re8 {[%emt 0:00:03]} 18. Bd6 {[%emt 0:00:24]} (18. Qxf7 $2 Qb7+ 19. Kg1 Nb6 20. Qxe6 Rxe7 $19) (18. Bxc5 $17 Nxc5 19. dxc5) 18... Qc6+ {[%emt 0:00:28]} 19. Kg1 {[%emt 0:00:04]} Kg8 {[%emt 0:00:04]} (19... cxd4 $19 {has better winning chances.} 20. cxd4 Kg8) 20. Rad1 {[%emt 0:00:12]} Rad8 {[%emt 0:01:05]} (20... a5 $17 21. a4 h6) 21. f4 {[%emt 0:00:56]} (21. Rd2 $15) 21... cxd4 {[%emt 0:00:43]} 22. Rxd4 {[%emt 0:00:04]} Nf8 {[%emt 0:00:45]} (22... f5 $17 {Hoping for ...Nc5.} 23. Qg5 Nb6) 23. f5 {[%emt 0:00:16]} (23. a4 $11) 23... exf5 $1 $15 {[%emt 0:00:19]} 24. Qxf5 {[%emt 0:00:03]} Qd7 {[%emt 0:00:30]} 25. Qh5 {[%emt 0:00:54]} (25. a4 $15) 25... Ng6 {[%emt 0:00:21]} 26. Qf3 {[%emt 0:00:32]} Qe6 {[%emt 0:00:10]} 27. Qb7 {[%emt 0:00:38][%csl LRa7,LRb5]} a6 $1 {[%emt 0:00:28]} ({Much less strong is} 27... Nxe5 28. Bxe5 a6 29. Rxd8 Rxd8 30. Bd4 $16) 28. h4 {[%emt 0:00:52]} (28. Qxa6 $17 {was called for.} Nxe5 29. Qxb5) 28... Rd7 {[%emt 0:00:16]} ({Black should try} 28... Nxe5 $19 29. Bxe5 Qxe5 30. Qxf7+ Kh8) 29. Qf3 {[%emt 0:00:17]} h6 {[%emt 0:01:19]} 30. h5 {[%emt 0:00:03]} Nf8 {[%emt 0:00:06][%cal Bg6f8,Bf8h7,Bh7g5][%mdl 32]} 31. Rf4 {[%emt 0:00:46]} (31. a4 $17) 31... Nh7 $19 {[%emt 0:00:07] Strongly threatening ...Ng5.} 32. Rf5 {[%emt 0:00:32] [#]} (32. Qg4 {might work better.}) 32... Ng5 {[%emt 0:00:28]} 33. Qc6 {[%emt 0:00:01]} (33. Qg4 {keeps fighting.}) 33... Red8 {[%emt 0:00:52][%cal Of7f6]} 34. Qxa6 {[%emt 0:00:24]} Qd5 {[%emt 0:00:14]} ({Don't blunder} 34... Rxd6 $2 35. exd6 Qe3+ 36. Kh2 $19 (36. Kh1 $2 Qe4+ 37. Kg1 Qe3+ 38. Kh2 Qe2+ 39. Kg1 Qg4 $19)) 35. Qb6 {[%emt 0:00:11]} Qd3 {[%emt 0:00:34][%csl LRc3,LRg3] Inhibits Qe3.} 36. Kh2 {[%emt 0:00:24]} Qe2+ {[%emt 0:00:24]} 37. R1f2 {[%emt 0:00:25]} Qxh5+ {[%emt 0:00:05]} 38. Kg2 {[%emt 0:00:02]} Qh3+ {[%emt 0:00:11]} 39. Kg1 {[%emt 0:00:01]} Qxg3+ {[%emt 0:00:04]} 40. Kh1 {[%emt 0:00:18]} Qh3+ {[%emt 0:00:32]} 41. Kg1 {[%emt 0:00:02]} Qg4+ {[%emt 0:00:02]} 42. Kh2 {[%emt 0:00:24]} Ne4 {[%emt 0:00:26]} 43. R2f4 {[%emt 0:00:19]} Qg3+ {[%emt 0:00:04] Black mates.} 44. Kh1 {[%emt 0:00:02]} Nxd6 {[%emt 0:00:13]} 45. exd6 {[%emt 0:00:10]} Rxd6 {[%emt 0:00:02]} 46. Qf2 {[%emt 0:00:04]} Rd1+ {[%emt 0:00:04] Weighted Error Value: White=0.87/Black=0.34} 0-1

[Event "Solidarity Match Ukraine-France 2022"]
[Site "Tornelo"]
[Date "2022.05.14"]
[Round "2.4"]
[White "Petrovskyi, Vadym"]
[Black "Riff, Vincent"]
[Result "1-0"]
[ECO "B51"]
[WhiteElo "2330"]
[BlackElo "2397"]
[Annotator "TA"]
[PlyCount "71"]
[EventDate "2022.05.13"]
[EventType "team-tourn"]
[EventCountry "NET"]
[SourceTitle "playchess.com"]
[Source "ChessBase"]
[SourceQuality "1"]
[WhiteTeam "Ukraine"]
[BlackTeam "France"]
[WhiteTeamCountry "UKR"]
[BlackTeamCountry "FRA"]
[TimeControl "900+10"]

{[%evp 14,71,25,22,95,99,99,80,81,75,77,75,90,64,66,71,79,70,84,67,86,53,60,52,53,53,55,46,52,40,52,58,45,46,156,156,195,223,279,262,248,262,270,261,371,361,347,359,457,429,642,642,835,827,740,776,793,779,1768,1665]} 1. e4 {[%emt 0:00:10]} c5 {[%emt 0:00:13]} 2. Nf3 {[%emt 0:00:32]} Nc6 {[%emt 0:00:02]} 3. Bb5 {[%emt 0:00:03]} d6 {[%emt 0:00:03]} 4. O-O {[%emt 0:00:07]} Bd7 {[%emt 0:00:02]} 5. Re1 {[%emt 0:00:01]} Nf6 {[%emt 0:00:03]} 6. c3 {[%emt 0:00:02]} a6 {[%emt 0:00:01]} 7. Bf1 {[%emt 0:00:01]} Bg4 {[%emt 0:00:02]} 8. d4 {[%emt 0:00:02][%cal Bd2d4,Bd4d5][%mdl 32]} e5 {[%emt 0:00:16] B51: Sicilian: Moscow Variation (3 Bb5+) without 3...Bd7.} (8... cxd4 $11 9. cxd4 d5) 9. d5 $16 {[%emt 0:02:27]} Nb8 {[%emt 0:00:04] [#]} 10. c4 $146 {[%emt 0:00:04]} ({Predecessor:} 10. Nbd2 Nbd7 11. a4 Bh5 12. a5 Be7 13. Nc4 O-O 14. h3 h6 15. Bd3 Nh7 16. g4 {0-1 (46) Kovacevic,A (2497)-Bogosavljevic,B (2513) Stara Planina 2021}) 10... Be7 {[%emt 0:00:04] White is better.} 11. Nc3 {[%emt 0:00:02]} Nbd7 {[%emt 0:00:03]} 12. Be2 {[%emt 0:00:08]} O-O {[%emt 0:00:04]} 13. Nd2 {[%emt 0:00:05]} Bxe2 {[%emt 0:00:03]} 14. Qxe2 {[%emt 0:00:01]} Ne8 {[%emt 0:00:05]} 15. Nf3 {[%emt 0:00:13]} Nc7 {[%emt 0:00:07]} 16. b3 {[%emt 0:00:01]} Nf6 {[%emt 0:00:43]} 17. Nd1 {[%emt 0:00:15][%cal Bc3d1,Bd1e3,Be3c4,Bc4a5,Ba5c6][%mdl 32]} b5 {[%emt 0:00:05]} 18. Qc2 {[%emt 0:00:08]} a5 {[%emt 0:00:08]} 19. Rb1 {[%emt 0:00:24]} Qd7 {[%emt 0:00:19]} 20. Ne3 {[%emt 0:00:08]} g6 {[%emt 0:00:08]} 21. cxb5 {[%emt 0:00:10]} Nxb5 {[%emt 0:00:05]} 22. Nc4 {[%emt 0:00:02]} Rfb8 {[%emt 0:00:19] Prevents Nb6.} (22... Nd4 $2 23. Nxd4 exd4 24. Nb6 $18) 23. Bd2 {[%emt 0:00:09]} Nh5 {[%emt 0:00:10] [#]} (23... Qc7 $14) 24. a4 $1 {[%emt 0:00:05] White is more active.} ({But not} 24. Bxa5 $6 Nf4 $14) 24... Nd4 {[%emt 0:00:14]} 25. Nxd4 {[%emt 0:00:06]} cxd4 {[%emt 0:00:01]} 26. Nxa5 {[%emt 0:00:04]} ({Weaker is} 26. Bxa5 Nf4 $16) 26... f5 {[%emt 0:02:07]} 27. Nc6 {[%emt 0:00:14]} Rf8 {[%emt 0:00:04]} 28. Bh6 {[%emt 0:00:04]} fxe4 {[%emt 0:01:16]} (28... Rf7 $142 29. f4 d3 30. Qxd3 fxe4 31. Rxe4 Nf6 32. fxe5 dxe5) 29. Bxf8 $18 {[%emt 0:00:15]} Rxf8 {[%emt 0:00:06]} 30. Qxe4 {[%emt 0:00:04]} ({Not} 30. Rxe4 Kh8 31. b4 Nf6 $18) 30... Rf4 {[%emt 0:00:14]} 31. Qe2 {[%emt 0:00:07] White is clearly winning.} Bf8 {[%emt 0:00:23]} (31... Rf7 $142 32. a5 Nf4) 32. a5 {[%emt 0:00:06]} Rg4 {[%emt 0:00:13][%cal Og4g2] [#] Threatens to win with ...Rxg2+!} 33. g3 {[%emt 0:00:15]} Nf4 {[%emt 0:00:09]} 34. Qf1 {[%emt 0:00:02]} Nxd5 {[%emt 0:00:08]} 35. Qc4 {[%emt 0:00:02]} Qe6 {[%emt 0:00:10]} 36. Nd8 {[%emt 0:00:11] Weighted Error Value: White=0.05 (flawless) /Black=0.36} 1-0